Cogmind - Beta 15 *** ADVENTURER MODE // 2025.08.24 @ 00:27:31 Player: erkyp3rky Result: Destroyed 0b10! Performance ------------- Evolutions (9) 4500 Regions Visited (20) 4000 Robots Destroyed (290) 1450 Value Destroyed (15179) 15179 Prototype IDs (32) 640 Alien Tech Used (7) 1400 Bonus (16458) 16458 TOTAL SCORE: 43627 Bonus ------- High Alert Combat Kills 777 Follower Combat Kills 2511 Network Hubs Disabled 200 Met Zhirov 300 Built Enhanced Grunts 300 Met R17 at Cetus 500 Met R17 at Research 2000 Met Sigix 2000 Escaped with Sigix 5000 Win 3000 Friendly Fire -130 Cogmind --------- Core Integrity 1381/1600 Matter 272/300 Energy 775/790 System Corruption 1% Temperature Cool (9) Movement Walking (114) Location Tau Ceti IV Orbit Parts ------- > --- POWER (2) -------- Particle Reactor Quantum Reactor > --- PROPULSION (5) --- Thunder Leg Biometal Leg Biometal Leg Biometal Leg Centrium Leg > --- UTILITY (14) ----- Advanced Heat Sink Large Storage Unit Small Battery Small Battery Advanced Sensor Array Advanced Signal Interpreter Advanced Targeting Computer Advanced Targeting Computer Improved Armor Integrity Analyzer Advanced Phase Shifter Heavy Armor Plating Heavy Armor Plating > --- WEAPON (4) ------- Hypervelocity Railgun Hypervelocity Railgun Hypervelocity Railgun Powered Hammer > --- INVENTORY (15) --- Light Antimatter Reactor Particle Reactor Centrium Heavy Treads Myomer Leg Biometal Leg Improved Matter Compressor (300) KE Penetrator KE Penetrator KE Penetrator KE Penetrator Gamma Bomb Array Micro-nuke Launcher Sigix Containment Pod Peak State ------------ > --- POWER ------------ Micro Antimatter Reactor Quantum Reactor > --- PROPULSION ------- Flexi-carbon Leg Flexi-carbon Leg Myomer Leg Myomer Leg Advanced Myomer Leg > --- UTILITY ---------- Advanced Cryofiber Web Advanced Cooling System Large Storage Unit Advanced Sensor Array Advanced Targeting Computer Armor Integrity Analyzer Centrium Light Armor Plating Phase Armor Phase Redirector > --- WEAPON ----------- Core Cannon Sigix Broadsword > --- INVENTORY -------- Centrium Heavy Treads Centrium Heavy Treads Improved Matter Compressor Transdimensional Reconstructor Variable Charge Gun Variable Charge Gun Gamma Bomb Array Sigix Containment Pod [Rating: 192] Favorites ----------- Power Quantum Reactor Engine Improved Deuterium Engine Power Core Enhanced Nuclear Core Reactor Quantum Reactor Propulsion Advanced Myomer Leg Treads Light Treads Leg Advanced Myomer Leg Hover Unit Aerolev Unit Utility Large Storage Unit Device Improved Cooling System Storage Large Storage Unit Processor Armor Integrity Analyzer Hackware Hacking Suite Protection Centrium Medium Armor Plating Artifact Phase Armor Weapon Cooled Particle Cannon Energy Gun Advanced Variable Charge Gun Energy Cannon Cooled Particle Cannon Ballistic Gun Hypervelocity Railgun Ballistic Cannon Gauss Cannon Launcher Gamma Bomb Array Special Weapon Mining Laser Impact Weapon Powered Hammer Slashing Weapon Sigix Broadsword Build | -11 -10 -9 -8 -7 -7 -6 -6 -6 -6 -6 -5 -5 -5 -5 -4 -4 -3 -3 -2 -1 ------- Run | Yrd Mat Mat Mat Fac Sto Fac Ext Cet Arc Hub Fac Upp Upp Zhi Pro Fac Res Qua Res Acc Slots Evolved 18 | . . 2 2 2 . 2 . . . . 2 . . . . 2 2 . 2 2 Power 1 | . . . . . . . . . . . 1 . . . . . . . . . Propulsion 3 | . . . 1 . . . . . . . 1 . . . . . 1 . . . Utility 12 | . . 2 1 1 . 2 . . . . . . . . . 2 . . 2 2 Weapon 2 | . . . . 1 . . . . . . . . . . . . 1 . . . Parts Attached 239 | 7 3 14 16 26 22 7 6 6 . 3 2 1 1 6 . 14 31 18 26 30 Power 29 | 1 1 2 2 3 2 . . 1 . . 1 . . . . 2 3 6 3 2 Engine 11 | 1 1 2 2 3 1 . . . . . . . . . . . . . 1 . Core 1 | . . . . . 1 . . . . . . . . . . . . . . . Reactor 17 | . . . . . . . . 1 . . 1 . . . . 2 3 6 2 2 Propulsion 51 | 2 . 2 1 4 7 3 2 1 . . 1 . . 3 . 2 7 2 5 9 Treads 10 | 2 . 2 1 . 3 . . 1 . . 1 . . . . . . . . . Leg 37 | . . . . 4 1 3 1 . . . . . . 3 . 2 7 2 5 9 Wheel . | . . . . . . . . . . . . . . . . . . . . . Hover 4 | . . . . . 3 . 1 . . . . . . . . . . . . . Flight . | . . . . . . . . . . . . . . . . . . . . . Utility 97 | 2 . 5 9 13 2 4 3 1 . 2 . . 1 3 . 7 15 7 13 10 Device 48 | 1 . 2 2 5 2 3 2 . . 1 . . 1 1 . 5 9 2 8 4 Storage 6 | 1 . . 2 . . . . . . . . . . 1 . . . . 2 . Processor 18 | . . 3 3 4 . 1 . . . . . . . . . 2 . 1 1 3 Hackware 1 | . . . 1 . . . . . . . . . . . . . . . . . Protection 22 | . . . 1 4 . . 1 1 . 1 . . . 1 . . 6 2 2 3 Artifact 2 | . . . . . . . . . . . . . . . . . . 2 . . Weapon 62 | 2 2 5 4 6 11 . 1 3 . 1 . 1 . . . 3 6 3 5 9 Energy Gun 17 | . . . . . 2 . 1 2 . 1 . . . . . 2 5 . 4 . Energy Cannon 9 | . . . 1 . 6 . . . . . . 1 . . . . . 1 . . Ballistic Gun 17 | 2 1 4 1 1 1 . . . . . . . . . . . . . . 7 Ballistic Cannon 7 | . . . . 3 1 . . . . . . . . . . 1 1 1 . . Launcher 5 | . 1 . . 1 . . . 1 . . . . . . . . . . 1 1 Special Weapon 1 | . . 1 . . . . . . . . . . . . . . . . . . Impact Weapon 4 | . . . 1 1 1 . . . . . . . . . . . . . . 1 Slashing Weapon 2 | . . . 1 . . . . . . . . . . . . . . 1 . . Piercing Weapon . | . . . . . . . . . . . . . . . . . . . . . Special Melee Weapon . | . . . . . . . . . . . . . . . . . . . . . Unidentified Prototypes 39 | . . 1 1 2 10 . . 3 . 1 . 1 . 4 . 1 4 9 2 . Corrupted Parts 2 | . . . . . . . 1 . . . . . . . . . . . 1 . System Corruption 10 | . . . . . . . 8 . . . . . . . . . . . 2 . Parts Lost 44 | . . 1 1 7 . . 2 1 . . . . 2 . 1 2 4 5 5 13 Power 3 | . . . . . . . . . . . . . . . . . . 1 1 1 Propulsion 3 | . . . . 2 . . . . . . . . . . . . . . . 1 Utility 29 | . . 1 1 4 . . 1 . . . . . 2 . 1 1 3 3 4 8 Weapon 9 | . . . . 1 . . 1 1 . . . . . . . 1 1 1 . 3 Highest Loss Streak 7 | . . 1 1 7 . . 1 1 . . . . 2 . 1 1 2 3 2 5 To Critical Strikes 1 | . . . . . . . . 1 . . . . . . . . . . . . Average Backups 11 | 1 4 6 9 9 13 13 13 13 13 13 13 14 14 13 13 12 11 11 9 11 Power . | . . 1 1 1 1 1 1 1 1 1 . . . . . . . . . 2 Propulsion 1 | . . . . . 1 1 1 1 1 1 . . . . 2 2 2 2 1 2 Utility 4 | . 1 1 2 4 6 5 6 6 6 6 7 7 6 5 5 4 4 4 1 1 Weapon 4 | . 1 3 4 2 3 5 5 5 5 5 5 6 7 7 5 5 3 3 5 6 Tool/Special . | . . . . . . . . . . . . . . . . . . . . . Unused Backups 42 | . . 1 2 2 3 2 3 6 . . . 1 . 4 . 1 2 4 4 7 Power 7 | . . . 1 . 1 . 1 1 . . . . . . . . . . 1 2 Propulsion 7 | . . . . . . 2 2 1 . . . . . . . . . . . 2 Utility 11 | . . 1 . 2 . . . 2 . . . 1 . 1 . . 2 2 . . Weapon 16 | . . . 1 . 1 . . 2 . . . . . 3 . 1 . 2 3 3 Tool/Special 1 | . . . . . 1 . . . . . . . . . . . . . . . Average Slot Usage (%) 95 | . 100 98 99 98 99 99 99 94 93 93 86 87 87 87 93 94 98 94 85 87 Engine 2 | . 14 11 9 6 6 . . . . . . . . . . . . . . . Reactor 4 | . . . . . . . . 5 6 6 10 11 11 11 11 9 9 8 7 7 Treads 6 | . 28 22 27 7 17 15 . 4 6 6 10 11 11 7 . . . . . . Leg 12 | . . . . 14 5 4 19 9 6 6 . . . 5 17 17 22 23 18 18 Device 17 | . 14 21 15 10 15 20 19 20 20 20 17 17 16 18 17 22 17 13 20 13 Storage 6 | . 14 11 9 6 7 6 6 6 6 6 5 5 5 5 5 5 4 4 7 12 Processor 14 | . . 11 16 17 15 19 20 20 20 20 17 17 13 11 11 14 14 13 8 13 Protection 7 | . . . 2 9 7 6 6 6 6 5 5 5 8 7 10 7 9 12 9 7 Energy Gun 5 | . . . . . . . 1 7 13 13 11 11 11 11 11 10 14 6 5 1 Energy Cannon 5 | . . . 6 . 8 18 18 11 6 5 4 4 4 5 4 . 2 . . . Ballistic Gun 3 | . 28 20 9 3 1 . . . . . . . . . . . . . . 11 Ballistic Cannon 2 | . . . . 10 10 . . . . . . . . . . 3 . 3 . . Slashing Weapon 1 | . . . . 4 . . . . . . . . . . . . . 2 4 1 Peak Build Rating 192 | 7 7 19 29 43 55 67 68 94 94 95 114 116 122 122 111 129 141 192 184 172 Average Rating 91 | 5 6 16 26 38 50 63 67 87 93 93 112 115 119 114 110 121 132 156 167 151 On Entrance 83 | . 7 7 19 29 43 55 67 68 94 94 94 114 116 122 111 105 114 136 187 167 Naked Turns . | . . . . . . . . . . . . . . . . . . . . . Heaviest Build 130 | 12 15 23 46 57 61 64 64 71 69 69 89 89 98 98 92 102 102 130 117 127 Greatest Support 160 | 40 40 40 63 63 66 66 60 80 80 80 160 160 160 160 90 110 145 130 140 140 Greatest Overweight (x) 7 | . . . . 4 7 3 1 1 . . . . . 3 1 1 1 1 . 1 Average Overweight (x) . | . . . . . . . . . . . . . . . . . . . . . Largest Inventory Capacity 15 | 8 8 8 15 15 15 15 15 15 15 15 15 15 15 15 15 15 15 15 15 15 Average Capacity 14 | 7 8 8 10 14 15 15 15 15 15 15 15 15 15 15 15 15 15 15 15 15 Most Carried 15 | 2 5 8 10 12 15 14 15 15 14 15 15 15 15 15 15 15 15 15 15 15 Average Carried 12 | 1 4 6 9 9 13 13 14 14 14 14 12 14 14 14 15 14 14 14 14 14 Final Capacity 15 | 8 8 8 15 15 15 15 15 15 15 15 15 15 15 15 15 15 15 15 15 15 Final Carried 15 | 2 5 8 10 12 15 14 14 14 14 15 13 15 14 15 15 15 15 11 15 15 Class Distribution -------------------- 22% | Scavenger-Tank 22% | Scavenger-Mutant 16% | Scavenger-Gunner 12% | Gunner 9% | Mutant 9% | Skirmisher 3% | Assassin Dominant Class ---------------- Mutant | -10/Materials Skirmisher | -9/Materials Scavenger-Mutant | -8/Materials Mutant | -7/Factory Skirmisher | -7/Storage Gunner | -6/Factory Gunner | -6/Extension Scavenger-Tank | -6/Cetus Scavenger-Tank | -6/Archives Scavenger-Tank | -6/Hub_04(d) Scavenger-Tank | -5/Factory Scavenger-Tank | -5/Upper Caves Scavenger-Tank | -5/Upper Caves Scavenger-Gunner | -5/Zhirov Scavenger-Gunner | -4/Proximity Caves Scavenger-Gunner | -4/Factory Scavenger-Tank | -3/Research Scavenger-Mutant | -3/Quarantine Scavenger-Mutant | -2/Research Scavenger-Gunner | -1/Access Resources | -11 -10 -9 -8 -7 -7 -6 -6 -6 -6 -6 -5 -5 -5 -5 -4 -4 -3 -3 -2 -1 ----------- Run | Yrd Mat Mat Mat Fac Sto Fac Ext Cet Arc Hub Fac Upp Upp Zhi Pro Fac Res Qua Res Acc Matter Collected 8318 | 342 116 688 550 536 897 218 116 113 32 152 . 50 30 200 243 635 683 555 524 1638 Remotely 857 | . . . 219 . . . . . . . . . . . . . . . . 638 Salvage Created 15698 | 246 181 726 670 662 668 380 1834 269 163 13 . 351 202 . 369 1118 1357 820 2199 3470 Parts 695 | 19 13 52 30 30 35 15 58 12 5 . . 14 12 . 13 40 51 50 107 139 Haulers Intercepted 8 | . 2 4 . 1 1 . . . . . . . . . . . . . . . Recyclers Shooed 11 | 1 . . . 1 . . . . . . . . . . . 2 1 . 6 . Parts Field Recycled . | . . . . . . . . . . . . . . . . . . . . . Retrieved Matter . | . . . . . . . . . . . . . . . . . . . . . Parts Self-Destructed 49 | . . . . . . . . . . . . 22 14 . 13 . . . . . Prevented . | . . . . . . . . . . . . . . . . . . . . . Kills | -11 -10 -9 -8 -7 -7 -6 -6 -6 -6 -6 -5 -5 -5 -5 -4 -4 -3 -3 -2 -1 ------- Run | Yrd Mat Mat Mat Fac Sto Fac Ext Cet Arc Hub Fac Upp Upp Zhi Pro Fac Res Qua Res Acc Combat Hostiles Destroyed 229 | . 3 12 16 16 16 6 24 4 2 . . 6 3 . 6 15 25 14 26 35 Melee 39 | . . . . 6 . . . . . . . . . . . . . 13 17 3 Guns 66 | . . 6 7 1 . . . . 1 . . 2 . . 4 10 7 . 5 23 Cannons 66 | . . . 2 4 10 4 22 3 1 . . 4 3 . 2 3 7 1 . . AOE 48 | . 3 6 6 4 6 2 . 1 . . . . . . . 2 10 . 3 5 Classes Destroyed 22 | 3 2 5 . 2 . . 2 . . . . . 1 . 1 2 2 . . 2 Worker 9 | 1 . 1 . 1 1 1 . . . . . . . . . . 2 . 1 1 Builder 8 | . . 3 . . 1 . 1 . . . . . . . . . . . 3 . Tunneler 6 | 6 . . . . . . . . . . . . . . . . . . . . Hauler 8 | . 2 4 . 1 1 . . . . . . . . . . . . . . . Recycler 15 | 1 1 2 1 . 1 . 2 . . . . . . . . 2 . . 4 1 Carrier 1 | . . . . . . . . . . . . . . . . . . . . 1 Operator 4 | . . . . . . . 1 . . 1 . . . . . . 1 1 . . Drone 1 | . . . . . . . . . . . . . . . 1 . . . . . Watcher 9 | . . 1 . 1 1 . 1 1 . . . . . . . . 2 . . 2 Swarmer 30 | . 3 4 3 3 . . 1 . . . . 1 . . . . 6 . 9 . Grunt 93 | . . 6 8 7 10 3 13 2 . . . 3 . . 4 6 12 3 5 11 Brawler 7 | . . 1 2 1 . 1 . . . . . . . . . 1 . . . 1 Duelist 6 | . . . . 1 1 1 . . . . . 1 . . 1 . . . . 1 Protector 1 | . . . . . . . . . . . . . . . . . . . . 1 Sentry 25 | . . 1 3 . 3 1 7 . 2 . . 1 . . . 1 2 . 2 2 Demolisher 1 | . . . . . . . . . . . . . . . . . 1 . . . Specialist 3 | . . . . . . . . . . . . . . . . 2 . . 1 . Hunter 20 | . . . . . . . . . . . . . 2 . . . 3 . . 15 Programmer 33 | . . . . 4 2 . 1 . . . . . . . . 4 . 9 9 4 Heavy 1 | . . . . . . . . . . . . . . . . 1 . . . . Behemoth 3 | . . . . . . . 2 . . . . . 1 . . . . . . . Cetus Guard 2 | . . . . . . . . 2 . . . . . . . . . . . . Quarantine Guard 2 | . . . . . . . . . . . . . . . . . . 2 . . Striker 1 | . . . . . . . . . . . . . . . . . 1 . . . Savage 1 | . . . . . . . 1 . . . . . . . . . . . . . Best Kill Streak 14 | 4 5 11 3 6 5 4 3 3 2 1 . 5 2 . 4 6 12 6 14 6 Combat Bots Only 10 | . 3 8 3 6 4 3 3 2 2 . . 5 2 . 4 6 10 6 9 6 Max Kills in Single Turn 4 | 1 4 3 3 2 3 2 2 1 1 1 . 2 1 . 1 1 3 1 2 3 Gunslinging 1 | . . 1 . . . . . . . . . . . . . . . . . . Exploded 3 | . 3 2 3 2 3 1 . 1 . . . . . . . 1 3 . 2 3 Melee 1 | . . . . 1 . . . . . . . . . . . . . 1 1 1 Uniques/NPCs Destroyed . | . . . . . . . . . . . . . . . . . . . . . Combat | -11 -10 -9 -8 -7 -7 -6 -6 -6 -6 -6 -5 -5 -5 -5 -4 -4 -3 -3 -2 -1 -------- Run | Yrd Mat Mat Mat Fac Sto Fac Ext Cet Arc Hub Fac Upp Upp Zhi Pro Fac Res Qua Res Acc Hostile Shots Fired 1479 | . 5 28 54 124 56 11 91 19 3 29 . 11 26 . 48 69 143 178 173 411 Missed 439 | . 4 13 15 26 14 1 31 5 2 8 . 4 8 . 14 25 42 40 40 147 Hits 1040 | . 1 15 39 98 42 10 60 14 1 21 . 7 18 . 34 44 101 138 133 264 Melee 24 | . . . 2 6 1 2 . . . . . . . . 2 . 4 . . 7 Projectile 1016 | . 1 15 37 92 41 8 60 14 1 21 . 7 18 . 32 44 97 138 133 257 AOE 1 | . . . . . . . . . . . . . . . . . 1 . . . Critical Strikes 52 | . . 1 1 7 1 . . 3 . 1 . . . . 1 2 4 10 13 8 Actively Blocked 8 | . . . . 1 . . . . . . . . . . . 2 . 1 2 2 Part Disruptions 5 | . . . . 1 . 1 . . . . . . . . . 2 . 1 . . Damage Taken 16954 | . 23 148 502 1255 367 359 688 135 20 333 . 120 530 . 885 793 1695 3111 2376 3614 Core 1698 | . . . 51 101 38 61 57 17 . 70 . . 61 . 225 62 118 479 139 219 Absorbed by Shields 1647 | . . . . . . . 21 109 . . . . . . . . . . 426 1091 Redirected to Core 326 | . . . . . . . . . . . . . . . . . . 326 . . Redirected to Shielding 552 | . . . . 29 . . . . . . . . . . 79 . 48 156 60 180 Ignored by Resistances 4965 | . 7 44 146 358 112 99 196 70 6 95 . 32 72 . 144 226 467 833 760 1298 Regen/Repaired (Parts) 2276 | . . . 20 252 . . . . . . 108 . . . . 118 . 845 697 236 Core Remaining (%) 84 | 100 100 100 90 . 80 . . . . 75 . . . . 71 94 . 52 84 86 Volleys Fired 471 | 18 12 41 31 21 32 6 44 16 3 12 1 7 11 . 11 52 51 13 21 68 Largest 4 | 2 2 2 2 2 3 3 3 2 3 3 3 3 1 . 3 3 4 4 2 4 Hottest 628 | 40 40 100 100 80 270 270 270 180 570 190 190 570 90 . 570 535 628 326 300 160 Shots Fired 1103 | 36 23 70 52 39 72 18 129 31 7 20 3 21 11 . 33 106 149 25 33 225 Gun 645 | 36 22 58 35 12 10 . 9 . 4 9 2 14 . . 22 54 108 9 25 216 Cannon 397 | . . . 12 24 56 18 120 30 3 8 1 7 11 . 11 49 30 16 1 . Launcher 55 | . 1 6 5 3 6 . . 1 . 3 . . . . . 3 11 . 7 9 Special 6 | . . 6 . . . . . . . . . . . . . . . . . . Kinetic 505 | 36 22 58 35 36 47 . . . . . . . . . . 49 1 15 . 206 Thermal 514 | . . 6 12 . 19 18 129 30 7 17 3 21 11 . 33 54 137 10 7 . Explosive 43 | . 1 6 5 3 6 . . 1 . 3 . . . . . 3 11 . . 4 Electromagnetic 41 | . . . . . . . . . . . . . . . . . . . 26 15 Robot Hit Streak 46 | 14 17 16 46 37 26 9 37 22 11 22 2 14 11 . 28 42 28 6 17 32 Robot Miss Streak 4 | 2 1 1 1 1 1 1 4 1 . 1 1 1 1 . . 1 3 2 4 3 Penetration Max 2 | . . . . . . . . . . . . . . . . . . . . 2 Secondary Targets 6 | . . 1 1 . . . . . . . . . . . . . . . . 4 Max Gunslinging Chain 1 | . . 1 1 . . . . . . . . . . . . . . . . 1 Shots Hit Robots 939 | 25 21 56 44 58 51 15 95 27 5 16 2 16 10 . 27 68 99 54 81 169 Core Hits 532 | 10 8 37 33 24 34 10 52 12 3 5 1 8 4 . 10 32 67 18 53 111 Critical Kills 33 | . . 1 1 . . . 1 . . . . . . . . 4 3 . . 23 Critical Parts Destroyed 36 | 1 1 . . 2 . . . . . . . . . . . 1 4 1 1 25 Critical Strikes 85 | 1 1 1 1 6 3 . 1 . . . . . . . . 6 7 3 5 50 Meltdown 2 | . . . 1 . . . 1 . . . . . . . . . . . . . Destroy 68 | 1 1 1 . 1 . . . . . . . . . . . 5 7 1 1 50 Blast 7 | . . . . 3 3 . . . . . . . . . . 1 . . . . Smash 1 | . . . . 1 . . . . . . . . . . . . . . . . Sever 7 | . . . . 1 . . . . . . . . . . . . . 2 4 . Melee Attacks 265 | . . . 10 57 1 9 . . . . . . 3 . 5 8 . 67 86 19 Impact 62 | . . . 1 33 1 9 . . . . . . 3 . 5 8 . . . 2 Slashing 203 | . . . 9 24 . . . . . . . . . . . . . 67 86 17 Piercing . | . . . . . . . . . . . . . . . . . . . . . Sneak Attacks 13 | . . . 1 2 . . . . . . . . . . . . . . 9 1 Combat Hostiles 1 | . . . . . . . . . . . . . . . . . . . . 1 Follow-up Attacks . | . . . . . . . . . . . . . . . . . . . . . Damage Inflicted 39183 | 282 375 1296 1275 2276 2506 984 3555 1003 242 638 48 516 543 . 1318 2460 4893 3841 6755 4377 Guns 10149 | 282 200 700 501 250 170 . 197 . 162 273 22 327 . . 969 1484 2314 127 561 1610 Cannons 10307 | . . . 295 588 1112 587 3358 892 80 189 26 189 543 . 349 756 790 353 200 . Explosions 8204 | . 175 548 420 451 1205 333 . 111 . 164 . . . . . 210 1789 . 962 1836 Melee 10431 | . . . 59 987 . 64 . . . . . . . . . . . 3361 5032 928 Ramming 44 | . . . . . 19 . . . . 12 . . . . . 10 . . . 3 Kinetic 5743 | 282 200 700 501 838 849 . . . . . . . . . . 756 . 153 . 1464 Thermal 14904 | . . 48 295 . 433 587 3555 892 242 462 48 516 543 . 1318 1484 3104 327 528 522 Explosive 5815 | . 175 548 375 451 1205 217 . 111 . . . . . . . 210 1789 . 163 571 Electromagnetic 2246 | . . . 45 . . 116 . . . 164 . . . . . . . . 1032 889 Impact 534 | . . . . 470 . 64 . . . . . . . . . . . . . . Slashing 9897 | . . . 59 517 . . . . . . . . . . . . . 3361 5032 928 Piercing . | . . . . . . . . . . . . . . . . . . . . . Highest Corruption 16 | . 1 . 4 8 . . 8 9 9 12 . . 6 6 . 2 1 16 16 1 Average Corruption 6 | . 1 . 4 5 . . 8 8 9 9 . . 6 4 . 1 1 7 11 1 Corruption Purged 15 | . . . . 9 . . . . . . . . . 6 . . . . . . Corruption Blocked . | . . . . . . . . . . . . . . . . . . . . . Effects 217 | . 1 . 12 12 . . 18 20 10 35 . . 13 2 . 2 5 44 42 1 Message Errors 53 | . 1 . 2 1 . . 3 2 4 10 . . 4 1 . 1 . 8 16 . Matter Fused 53 | . . . 6 5 . . 2 4 1 8 . . . . . 1 3 13 9 1 Heat Flow Errors 24 | . . . 1 2 . . 2 3 1 2 . . 3 1 . . . 5 4 . Energy Discharges 17 | . . . 1 3 . . 1 1 . 5 . . 2 . . . 1 1 2 . Parts Rejected 4 | . . . . . . . . . 1 . . . . . . . . 2 1 . Parts Fused 4 | . . . 1 . . . . 1 . . . . . . . . . 1 1 . Data Loss (minor) 31 | . . . 1 1 . . 4 6 3 5 . . 1 . . . . 5 5 . Data Loss (major) 11 | . . . . . . . 3 1 . 2 . . . . . . 1 3 1 . Misfires 9 | . . . . . . . 3 1 . . . . . . . . . 4 1 . Alerts 5 | . . . . . . . . . . 1 . . 3 . . . . . 1 . Misdirections 3 | . . . . . . . . . . . . . . . . . . 2 1 . Weapon Failures 3 | . . . . . . . . 1 . 2 . . . . . . . . . . Overload Shots 117 | . . . . . 6 6 34 7 3 . . 3 7 . 12 4 35 . . . Effects 8 | . . . . . . 1 2 1 1 . . . . . 1 . 2 . . . Energy Bleed 2 | . . . . . . . 1 . . . . . . . . . 1 . . . Heat Surge 5 | . . . . . . 1 1 . 1 . . . . . 1 . 1 . . . Short Circuit 1 | . . . . . . . . 1 . . . . . . . . . . . . Overflow Damage 2085 | . . 32 29 311 48 85 44 . . 19 . . . . . 45 102 228 1059 83 Projectiles 274 | . . . . 2 29 12 44 . . 13 . . . . . 45 67 47 15 . Explosions 300 | . . 32 . 66 19 73 . . . 6 . . . . . . 35 . 51 18 Melee 1511 | . . . 29 243 . . . . . . . . . . . . . 181 993 65 Knockbacks 24 | . . . . 10 7 1 . . . . . . . . . 4 . 2 . . Impact 3 | . . . . 1 1 1 . . . . . . . . . . . . . . Kinetic 20 | . . . . 8 6 . . . . . . . . . . 4 . 2 . . Secondary 1 | . . . . 1 . . . . . . . . . . . . . . . . Self-Inflicted Damage 584 | . . . 32 . . 198 . . . 75 . . . . . . 14 . 161 104 Shots 24 | . . . 1 . . 5 . . . 1 . . . . . . 1 . 11 5 Rammed 2 | . . . . . 1 . . . . 1 . . . . . . . . . . Targets Rammed 4 | . . . . . 1 . . . . 1 . . . . . 1 . . . 1 Kicked 2 | . . . . . . . . . . . . . . . . 1 . . . 1 Crushed . | . . . . . . . . . . . . . . . . . . . . . Highest Temperature 965 | . . 24 235 194 259 467 374 152 547 184 . 354 233 255 965 511 685 246 . 28 Average Temperature 112 | . . 8 100 28 86 157 98 51 218 88 . 184 65 132 225 185 177 135 . 12 Received Heat Transfer 2333 | . . 96 270 297 183 63 231 . . 99 . 45 . . 78 90 343 57 125 356 Effects 18 | . . . . . . . . . . . . . . . 11 2 5 . . . Shutdowns 3 | . . . . . . . . . . . . . . . 3 . . . . . Energy Bleed 4 | . . . . . . . . . . . . . . . 2 2 . . . . Interference 3 | . . . . . . . . . . . . . . . . . 3 . . . Matter Decay 1 | . . . . . . . . . . . . . . . 1 . . . . . Short Circuit 1 | . . . . . . . . . . . . . . . . . 1 . . . Damage (minor) 2 | . . . . . . . . . . . . . . . 1 . 1 . . . Damage (major) 3 | . . . . . . . . . . . . . . . 3 . . . . . Damage (core) 1 | . . . . . . . . . . . . . . . 1 . . . . . Siege Activations . | . . . . . . . . . . . . . . . . . . . . . Martial Activations . | . . . . . . . . . . . . . . . . . . . . . Shielding Activations . | . . . . . . . . . . . . . . . . . . . . . Robots Disrupted . | . . . . . . . . . . . . . . . . . . . . . Combat Hostiles . | . . . . . . . . . . . . . . . . . . . . . Robots Corrupted 7 | . . . . 1 . . . . . 1 . . . . . . . . 1 4 Combat Hostiles 6 | . . . . 1 . . . . . . . . . . . . . . 1 4 Parts Fried 19 | . . . . 1 . . . . . . . . . . . . . . 6 12 Impact Corruptions 8 | . . . . 8 . . . . . . . . . . . . . . . . Robots Melted 4 | . . . 1 . . . 2 . . . . . . . . . 1 . . . Combat Hostiles 4 | . . . 1 . . . 2 . . . . . . . . . 1 . . . Parts Melted 41 | . . . 2 . . 1 12 . 2 . . . 2 . 3 4 15 . . . Heat Transferred 16147 | . . 100 407 . 507 620 3944 1053 224 592 74 655 448 . 1166 1691 3996 148 272 250 Parts Sabotaged . | . . . . . . . . . . . . . . . . . . . . . Parts Stolen . | . . . . . . . . . . . . . . . . . . . . . Parts Stripped . | . . . . . . . . . . . . . . . . . . . . . Power Chain Reactions 2 | . . . . . . 1 . . . . . . . . . . . . 1 . Alert | -11 -10 -9 -8 -7 -7 -6 -6 -6 -6 -6 -5 -5 -5 -5 -4 -4 -3 -3 -2 -1 ------- Run | Yrd Mat Mat Mat Fac Sto Fac Ext Cet Arc Hub Fac Upp Upp Zhi Pro Fac Res Qua Res Acc Maximum Alert Level 4 | . . 1 . . 1 . . . . 4 2 . . . . 2 2 . 1 3 Low Security (%) 71 | 100 100 84 100 100 70 100 100 100 100 9 . . . . . 6 23 100 72 11 Level 1 14 | . . 15 . . 29 . . . . 4 . . . . . 74 40 . 27 18 Level 2 11 | . . . . . . . . . . 59 100 . . . . 18 35 . . 52 Level 3 2 | . . . . . . . . . . 23 . . . . . . . . . 17 Level 4 . | . . . . . . . . . . 2 . . . . . . . . . . Level 5 . | . . . . . . . . . . . . . . . . . . . . . High Security . | . . . . . . . . . . . . . . . . . . . . . Max Security . | . . . . . . . . . . . . . . . . . . . . . Peak Influence 1100 | 10 90 228 147 121 258 197 116 176 172 1100 453 . . . . 461 503 148 279 840 Initial 461 | . . . 1 22 . 59 49 42 49 14 451 . . . . 461 182 148 . 108 Average 152 | 1 15 93 86 18 129 78 30 107 108 574 436 . . . . 300 319 46 110 470 Influence Increases 10640 | 40 117 408 497 549 607 253 1100 364 143 1521 28 296 103 . 115 1009 811 574 827 1278 Destroy 0b10 Robot/C 5720 | . 60 240 320 320 320 140 720 260 80 560 . 220 80 . 100 300 500 280 520 700 Destroy 0b10 Robot/NC 360 | 40 15 55 5 15 25 5 45 10 . 35 . . . . 5 10 25 5 40 25 Destroy Leader 1074 | . 14 60 70 82 94 20 104 20 . 122 . . 20 . 10 70 84 60 90 154 Allied During Kill 573 | . . . . . . . 63 53 40 353 . 61 3 . . . . . . . Successful Hack 294 | . 20 . 21 39 15 . 23 . . . 22 . . . . 22 40 68 24 . Disable Machine 486 | . . 9 27 36 54 45 36 9 18 90 . . . . . 18 27 81 9 27 Anti-Garrison Action 150 | . . . . . . . . . . 150 . . . . . . . . . . Destroy Structure 963 | . 8 29 39 42 69 28 19 12 5 196 6 . . . . 94 120 50 129 117 Advance Influence 450 | . . . . . . . . . . . . . . . . 450 . . . . Lose Combat Pursuer 570 | . . 15 15 15 30 15 90 . . 15 . 15 . . . 45 15 30 15 255 Influence Decreases 9824 | 40 117 403 445 605 454 290 1130 305 237 503 689 614 194 . 95 629 908 877 620 669 Entered New Map 1693 | . . . 4 35 1 95 68 45 97 38 619 184 26 . . 9 218 155 . 99 Time Decay 7408 | 40 117 393 431 500 453 195 824 250 140 445 70 350 168 . 85 600 650 677 580 440 Lost Part 405 | . . 10 10 70 . . 20 10 . . . . . . 10 20 40 45 40 130 Lost Ally 238 | . . . . . . . 138 . . 20 . 80 . . . . . . . . Purge Threat 80 | . . . . . . . 80 . . . . . . . . . . . . . Squads Dispatched 63 | . . 2 3 7 4 3 4 2 . 8 1 . . . . 5 11 3 8 2 Investigation 24 | . . 2 1 2 2 2 2 2 . 3 . . . . . 1 6 . 1 . Extermination 18 | . . . . 4 2 . . . . 2 . . . . . 2 . 3 4 1 Reinforcement 19 | . . . 2 1 . 1 2 . . 2 1 . . . . 2 5 . 3 . Assault 2 | . . . . . . . . . . 1 . . . . . . . . . 1 Garrison . | . . . . . . . . . . . . . . . . . . . . . Intercept . | . . . . . . . . . . . . . . . . . . . . . Searches Triggered . | . . . . . . . . . . . . . . . . . . . . . Construction Impeded 3 | . . . 1 . . 1 . . . . . . . . . . . . 1 . Haulers Reinforced 1 | . . . . . . . . . . . . . . . . . 1 . . . Active Scanning Responses . | . . . . . . . . . . . . . . . . . . . . . Cargo Convoy Interrupts . | . . . . . . . . . . . . . . . . . . . . . Stealth | -11 -10 -9 -8 -7 -7 -6 -6 -6 -6 -6 -5 -5 -5 -5 -4 -4 -3 -3 -2 -1 --------- Run | Yrd Mat Mat Mat Fac Sto Fac Ext Cet Arc Hub Fac Upp Upp Zhi Pro Fac Res Qua Res Acc Distress Signals 34 | . . 2 2 1 . . 4 2 . 4 . . . . 1 1 11 1 . 5 Communications Jammed . | . . . . . . . . . . . . . . . . . . . . . Distress Signals . | . . . . . . . . . . . . . . . . . . . . . Times Spotted 390 | . 3 14 18 26 16 9 44 14 4 26 1 12 4 . 12 21 44 26 37 59 Peak Tracking Total 12 | . 3 5 6 8 4 3 8 5 2 5 1 9 2 . 4 5 12 7 7 10 Tactical Retreats 26 | . . 1 1 1 2 1 3 . . 1 . 1 . . . 3 1 2 1 8 Traps | -11 -10 -9 -8 -7 -7 -6 -6 -6 -6 -6 -5 -5 -5 -5 -4 -4 -3 -3 -2 -1 ------- Run | Yrd Mat Mat Mat Fac Sto Fac Ext Cet Arc Hub Fac Upp Upp Zhi Pro Fac Res Qua Res Acc Traps Triggered 21 | . 3 3 . . . 1 8 . . 1 . . . . . 3 1 . 1 . Indirectly . | . . . . . . . . . . . . . . . . . . . . . Trap Hack Attempts . | . . . . . . . . . . . . . . . . . . . . . Triggered . | . . . . . . . . . . . . . . . . . . . . . Disarmed 6 | . 6 . . . . . . . . . . . . . . . . . . . Reprogrammed . | . . . . . . . . . . . . . . . . . . . . . Reused . | . . . . . . . . . . . . . . . . . . . . . Traps Extracted . | . . . . . . . . . . . . . . . . . . . . . Installed . | . . . . . . . . . . . . . . . . . . . . . Triggered . | . . . . . . . . . . . . . . . . . . . . . Machines | -11 -10 -9 -8 -7 -7 -6 -6 -6 -6 -6 -5 -5 -5 -5 -4 -4 -3 -3 -2 -1 ---------- Run | Yrd Mat Mat Mat Fac Sto Fac Ext Cet Arc Hub Fac Upp Upp Zhi Pro Fac Res Qua Res Acc Machines Disabled 59 | . 1 1 3 4 6 5 5 3 2 11 . . . . . 2 3 9 1 3 Max in Single Turn 9 | . 1 1 1 1 1 2 1 1 1 9 . . . . . 1 2 1 1 1 Garrison Access 3 | . . . . 1 . . . . . 1 . . . . . . 1 . . . Network Hub 1 | . . . . . . . . . . 1 . . . . . . . . . . Energy Cycler 1 | . . . . . . . . . . . . . . . . . . . . 1 Machines Repaired . | . . . . . . . . . . . . . . . . . . . . . Machines Dismantled . | . . . . . . . . . . . . . . . . . . . . . Machines Sabotaged . | . . . . . . . . . . . . . . . . . . . . . Overloaded Fab Kills . | . . . . . . . . . . . . . . . . . . . . . Hacking | -11 -10 -9 -8 -7 -7 -6 -6 -6 -6 -6 -5 -5 -5 -5 -4 -4 -3 -3 -2 -1 --------- Run | Yrd Mat Mat Mat Fac Sto Fac Ext Cet Arc Hub Fac Upp Upp Zhi Pro Fac Res Qua Res Acc Machines Accessed 67 | . 6 1 5 9 7 2 8 2 1 2 1 . . . . 2 5 11 5 . Terminals 45 | . 6 1 3 3 7 2 7 2 . 2 . . . . . . 2 8 2 . Fabricators 6 | . . . . 3 . . . . . . . . . . . . 2 . 1 . Repair Stations 6 | . . . 1 1 . . . . . . 1 . . . . 1 . 1 1 . Recycling Units 4 | . . . 1 1 . . 1 . . . . . . . . 1 . . . . Scanalyzers 4 | . . . . . . . . . . . . . . . . . 1 2 1 . Garrison Access 1 | . . . . 1 . . . . . . . . . . . . . . . . Total Hacks 205 | . 20 2 19 19 13 6 17 9 25 11 3 . . . . 6 8 34 13 . Successful 104 | . 11 . 10 9 6 1 9 . 25 7 2 . . . . 3 2 16 3 . Failed 101 | . 9 2 9 10 7 5 8 9 . 4 1 . . . . 3 6 18 10 . Catastrophic 20 | . . . . 3 . 3 2 2 . . . . . . . . 5 2 3 . Database Lockouts . | . . . . . . . . . . . . . . . . . . . . . Manual 70 | . 20 2 8 8 2 3 6 1 . 6 . . . . . . 6 4 4 . Terminals 126 | . 20 2 11 9 13 6 15 9 . 11 . . . . . . 3 20 7 . Fabricators 9 | . . . . 4 . . . . . . . . . . . . 4 . 1 . Repair Stations 18 | . . . 4 3 . . . . . . 3 . . . . 4 . 3 1 . Recycling Units 9 | . . . 4 1 . . 2 . . . . . . . . 2 . . . . Scanalyzers 16 | . . . . . . . . . . . . . . . . . 1 11 4 . Garrison Access 2 | . . . . 2 . . . . . . . . . . . . . . . . Terminal Hacks 59 | . 5 . 4 1 6 . 5 . 25 2 . . . . . . 1 8 2 . Record 33 | . . . . . . . 1 . 25 1 . . . . . . . 5 1 . Part Schematic 2 | . 2 . . . . . . . . . . . . . . . . . . . Robot Analysis 6 | . 2 . 3 . . . . . . 1 . . . . . . . . . . Open Door 10 | . . . . . 6 . 3 . . . . . . . . . . 1 . . Level Access Points 2 | . . . . . . . . . . . . . . . . . . 1 1 . Branch Access Points 1 | . . . . . . . . . . . . . . . . . 1 . . . Unreport Threat 1 | . . . . . . . 1 . . . . . . . . . . . . . Disarm Traps 1 | . 1 . . . . . . . . . . . . . . . . . . . Maintenance Status 1 | . . . . . . . . . . . . . . . . . . 1 . . Zone Layout 2 | . . . 1 1 . . . . . . . . . . . . . . . . Fabricator Hacks . | . . . . . . . . . . . . . . . . . . . . . Repair Station Hacks 10 | . . . 2 2 . . . . . . 2 . . . . 2 . 2 . . Scan Component 5 | . . . 1 1 . . . . . . 1 . . . . 1 . 1 . . Repair 5 | . . . 1 1 . . . . . . 1 . . . . 1 . 1 . . Recycling Unit Hacks 6 | . . . 2 1 . . 2 . . . . . . . . 1 . . . . Report Inventory 4 | . . . 1 1 . . 1 . . . . . . . . 1 . . . . Retrieve Components 2 | . . . 1 . . . 1 . . . . . . . . . . . . . Scanalyzer 7 | . . . . . . . . . . . . . . . . . . 6 1 . Insert Component 5 | . . . . . . . . . . . . . . . . . . 4 1 . Analyze 2 | . . . . . . . . . . . . . . . . . . 2 . . Garrison Access Hacks 1 | . . . . 1 . . . . . . . . . . . . . . . . Seal Access 1 | . . . . 1 . . . . . . . . . . . . . . . . Unauthorized Hacks 21 | . 6 . 2 4 . 1 2 . . 5 . . . . . . 1 . . . Terminals 18 | . 6 . 2 2 . 1 2 . . 5 . . . . . . . . . . Track 1 | . . . . . . . . . . 1 . . . . . . . . . . Botnet 14 | . 6 . 2 2 . 1 2 . . 1 . . . . . . . . . . Operators 1 | . . . . . . . . . . 1 . . . . . . . . . . Sabotage 2 | . . . . . . . . . . 2 . . . . . . . . . . Fabricators 3 | . . . . 2 . . . . . . . . . . . . 1 . . . Fabnet 3 | . . . . 2 . . . . . . . . . . . . 1 . . . Repair Stations . | . . . . . . . . . . . . . . . . . . . . . Recycling Units . | . . . . . . . . . . . . . . . . . . . . . Scanalyzers . | . . . . . . . . . . . . . . . . . . . . . Garrison Access . | . . . . . . . . . . . . . . . . . . . . . Data Cores Recovered 3 | . . . 1 . . . . . . 1 . . . . . . . 1 . . Used . | . . . . . . . . . . . . . . . . . . . . . Hacking Detections 50 | . 6 1 4 5 4 2 5 2 . 2 1 . . . . 2 4 7 5 . Full Trace Events 16 | . 3 . 1 2 2 2 2 2 . . . . . . . . 1 . 1 . Feedback Events 3 | . . . . . . . . 1 . . . . . . . . 1 . 1 . Corruption 3 | . . . . . . . . 1 . . . . . . . . 1 . 1 . Feedback Blocked . | . . . . . . . . . . . . . . . . . . . . . Robot Schematics Acquired . | . . . . . . . . . . . . . . . . . . . . . Robots Built . | . . . . . . . . . . . . . . . . . . . . . Authchips . | . . . . . . . . . . . . . . . . . . . . . Time . | . . . . . . . . . . . . . . . . . . . . . Total Robot Build Rating . | . . . . . . . . . . . . . . . . . . . . . Part Schematics Acquired 4 | . 2 . . . . . . . . . . . . . . . . 2 . . Parts Built . | . . . . . . . . . . . . . . . . . . . . . Authchips . | . . . . . . . . . . . . . . . . . . . . . Time . | . . . . . . . . . . . . . . . . . . . . . Total Part Build Rating . | . . . . . . . . . . . . . . . . . . . . . Parts Repaired 5 | . . . 1 1 . . . . . . 1 . . . . 1 . 1 . . Time 139 | . . . 38 13 . . . . . . 35 . . . . 37 . 16 . . Parts Recycled . | . . . . . . . . . . . . . . . . . . . . . Recycled Matter . | . . . . . . . . . . . . . . . . . . . . . Retrieved Matter . | . . . . . . . . . . . . . . . . . . . . . Retrieved Components 12 | . . . 9 . . . 3 . . . . . . . . . . . . . Parts Scanalyzed 5 | . . . . . . . . . . . . . . . . . . 4 1 . Part Schematics Acquired 2 | . . . . . . . . . . . . . . . . . . 2 . . Parts Damaged . | . . . . . . . . . . . . . . . . . . . . . Bothacking | -11 -10 -9 -8 -7 -7 -6 -6 -6 -6 -6 -5 -5 -5 -5 -4 -4 -3 -3 -2 -1 ------------ Run | Yrd Mat Mat Mat Fac Sto Fac Ext Cet Arc Hub Fac Upp Upp Zhi Pro Fac Res Qua Res Acc Used RIF Installer . | . . . . . . . . . . . . . . . . . . . . . Robots Hacked 3 | . . . . . . 1 1 . . 1 . . . . . . . . . . Non-combat . | . . . . . . . . . . . . . . . . . . . . . Combat 3 | . . . . . . 1 1 . . 1 . . . . . . . . . . Robot Hacks Applied . | . . . . . . . . . . . . . . . . . . . . . Relay Couplers Released 5 | . . . . . . . . . . 3 . . . . . . 2 . . . Machine Destruction 5 | . . . . . . . . . . 3 . . . . . . 2 . . . Fabnet Peak Effective % 6 | . . . . . . 6 6 6 6 6 2 2 2 2 . . . . . . Autooverrided 3 | . . . . . . 1 1 . . 1 . . . . . . . . . . Robots Rewired 12 | . . . . . . . 10 . . . . 2 . . . . . . . . Allies Hacked . | . . . . . . . . . . . . . . . . . . . . . Hacks Repelled . | . . . . . . . . . . . . . . . . . . . . . Allies | -11 -10 -9 -8 -7 -7 -6 -6 -6 -6 -6 -5 -5 -5 -5 -4 -4 -3 -3 -2 -1 -------- Run | Yrd Mat Mat Mat Fac Sto Fac Ext Cet Arc Hub Fac Upp Upp Zhi Pro Fac Res Qua Res Acc Total Allies 25 | . . . . . . 1 16 5 . 1 . 2 . . . . . . . . Largest Group 7 | . . . . . . 1 7 6 6 6 4 4 2 . . . . . . . Highest-Rated Group 639 | . . . . . . 20 209 639 632 502 384 384 120 . . . . . . . Highest-Rated Ally 159 | . . . . . . 20 159 159 159 96 96 96 91 . . . . . . . Total Orders 21 | . . . . . 2 . . 15 . . . 2 . . . . . . 2 . GUARD 12 | . . . . . . . . 10 . . . 2 . . . . . . . . AID 5 | . . . . . . . . 5 . . . . . . . . . . . . EXPLORE 4 | . . . . . 2 . . . . . . . . . . . . . 2 . Ally Attacks 337 | . . . . . . 2 99 59 19 124 4 24 6 . . . . . . . Total Damage 9917 | . . . . . . 79 1818 2031 604 4432 50 697 206 . . . . . . . Kills 69 | . . . . . . 1 16 10 2 34 . 5 1 . . . . . . . Allies Corrupted . | . . . . . . . . . . . . . . . . . . . . . Allies Melted 2 | . . . . . . . 1 . . . . 1 . . . . . . . . Intel | -11 -10 -9 -8 -7 -7 -6 -6 -6 -6 -6 -5 -5 -5 -5 -4 -4 -3 -3 -2 -1 ------- Run | Yrd Mat Mat Mat Fac Sto Fac Ext Cet Arc Hub Fac Upp Upp Zhi Pro Fac Res Qua Res Acc Active Infowar (turns) 17179 | 44 544 905 895 1994 973 460 2061 519 295 909 140 701 554 379 508 1209 1302 1571 788 428 Sensors 15347 | . . 810 460 1280 973 460 2061 519 295 909 140 701 554 379 508 1209 1302 1571 788 428 Terrain 3149 | . . 905 895 1349 . . . . . . . . . . . . . . . . Seismic 608 | 44 544 20 . . . . . . . . . . . . . . . . . . Jamming 1268 | . . . . . 947 321 . . . . . . . . . . . . . . Robot Analysis Total 6 | . 2 . 3 . . . . . . 1 . . . . . . . . . . Derelict Logs Recovered 5 | . . . . . . . . . . . . 2 2 . 1 . . . . . Drone Launches 4 | . . . . . 2 . . . . . . . . . . . . . 2 . Drone Recoveries 2 | . . . . . 2 . . . . . . . . . . . . . . . Exploration | -11 -10 -9 -8 -7 -7 -6 -6 -6 -6 -6 -5 -5 -5 -5 -4 -4 -3 -3 -2 -1 ------------- Run | Yrd Mat Mat Mat Fac Sto Fac Ext Cet Arc Hub Fac Upp Upp Zhi Pro Fac Res Qua Res Acc Turns Passed 18743 | 268 546 905 895 2051 973 514 2201 519 295 909 140 701 554 379 508 1209 1303 1603 1386 884 Spaces Moved 9282 | 131 314 450 397 840 444 252 1017 210 171 498 61 408 324 162 240 439 857 943 690 434 Core 3 | 3 . . . . . . . . . . . . . . . . . . . . Treads 3894 | 128 314 450 397 308 377 196 . 161 171 498 61 408 324 101 . . . . . . Legs 5382 | . . . . 532 64 56 1017 49 . . . . . 61 240 439 857 943 690 434 Wheels . | . . . . . . . . . . . . . . . . . . . . . Hover 3 | . . . . . 3 . . . . . . . . . . . . . . . Flight . | . . . . . . . . . . . . . . . . . . . . . Fastest Speed 50 | 50 160 160 160 160 145 145 126 126 160 160 160 160 160 160 120 120 115 116 120 114 Average Speed 150 | 157 160 160 160 182 154 162 172 159 160 160 160 160 160 172 187 151 117 119 123 117 Slowest Speed 490 | 160 160 160 160 400 490 340 200 196 160 160 160 160 160 330 190 190 190 190 126 190 Overloaded Moves . | . . . . . . . . . . . . . . . . . . . . . Propulsion Burnouts . | . . . . . . . . . . . . . . . . . . . . . Robots Hopped 1 | . 1 . . . . . . . . . . . . . . . . . . . Potential Cave-ins . | . . . . . . . . . . . . . . . . . . . . . Cave-ins Triggered 2 | . . . . . . . . . . . . . 1 . 1 . . . . . Teleports 1 | . . . . . . . . . . . . . . . . . . . 1 . Exploration Rate (%) 39 | 4 60 28 26 20 53 7 70 68 94 36 3 64 58 62 38 17 27 72 20 8 Regions Visited 20 Branch Regions 10 Pre-discovered Areas 1 | . . . . . . . . . . . . . 1 . . . . . . . Known Exits Taken 12 | . . . 1 1 1 1 1 . . 1 1 1 . . . 1 1 1 1 . Unknown Exits Taken 8 | 1 1 1 . . . . . 1 1 . . . 1 1 1 . . . . . Scrap Searched 6 | . . . . . . . . . . . . 4 2 . . . . . . . Spaces Dug 395 | . . 3 6 28 . 7 . . . 235 . . 3 . 5 26 25 17 24 16 Terrain Destroyed 721 | . 8 26 37 41 75 27 9 7 1 235 . 3 4 . 9 49 64 25 57 44 Melee 100 | . . . 6 28 . 7 . . . . . . 3 . 5 8 . 15 24 4 Projectile 103 | . . 3 1 . 14 2 9 . 1 . . 3 1 . 4 32 15 10 7 1 AOE 510 | . 8 23 30 13 61 18 . 7 . 235 . . . . . 9 49 . 26 31 Terrain Rammed . | . . . . . . . . . . . . . . . . . . . . . Walls Destroyed . | . . . . . . . . . . . . . . . . . . . . . Machines Disabled . | . . . . . . . . . . . . . . . . . . . . . Actions | -11 -10 -9 -8 -7 -7 -6 -6 -6 -6 -6 -5 -5 -5 -5 -4 -4 -3 -3 -2 -1 --------- Run | Yrd Mat Mat Mat Fac Sto Fac Ext Cet Arc Hub Fac Upp Upp Zhi Pro Fac Res Qua Res Acc Total 12589 | 157 333 549 586 1219 670 326 1369 367 187 590 101 441 342 262 265 876 1049 1271 1020 609 Wait 1698 | . . 18 91 225 111 39 162 114 13 71 35 14 . 80 8 333 45 167 143 29 Move 9260 | 130 311 449 396 839 443 251 1016 209 170 497 60 407 323 161 239 439 856 942 689 433 Hop 1 | . 1 . . . . . . . . . . . . . . . . . . . Pick Up 113 | 2 2 9 10 20 9 2 7 7 . . 1 2 1 4 . 2 6 7 15 7 Fast Attach 250 | 7 3 9 11 21 28 3 5 4 1 3 1 2 . 7 . 21 40 33 28 23 Attach 36 | . . 1 2 8 . 2 1 1 . . 2 . 2 . . 2 5 3 4 3 Detach 12 | . . . 1 2 . . . . . 1 . 1 . . . 1 3 1 2 . Swap 93 | . 3 11 17 6 10 6 1 3 . 3 . . 2 1 2 4 7 1 4 12 Drop 256 | . 1 11 17 20 35 6 10 13 . 2 1 2 . 9 . 14 36 37 28 14 Fire 471 | 18 12 41 31 21 32 6 44 16 3 12 1 7 11 . 11 52 51 13 21 68 Melee 265 | . . . 10 57 1 9 . . . . . . 3 . 5 8 . 67 86 19 Ram . | . . . . . . . . . . . . . . . . . . . . . Kick 1 | . . . . . . . . . . . . . . . . . . . . 1 Crush 2 | . . . . . 1 . . . . 1 . . . . . . . . . . Escape Stasis 35 | . . . . . . . 35 . . . . . . . . . . . . . Rewire 96 | . . . . . . 2 88 . . . . 6 . . . . . . . . Trap . | . . . . . . . . . . . . . . . . . . . . . Miscellaneous . | . . . . . . . . . . . . . . . . . . . . . Route ------- -11/Scrapyard -10/Materials (discovered 4 exits: *Mat / [*Min x2] / [*Sub]) -9/Materials -8/Materials -7/Factory (discovered 2 exits: *Sto / *Low) -7/Storage -6/Factory -6/Extension (discovered 2 exits: *Fac / *Cet) -6/Cetus (discovered 2 exits: *Fac / *Arc) -6/Archives (discovered 3 exits: *Fac / *Hub x2) -6/Hub_04(d) -5/Factory -5/Upper Caves -5/Upper Caves -5/Zhirov -4/Proximity Caves -4/Factory -3/Research (discovered 4 exits: *Res / Arm / *Qua x2) -3/Quarantine -2/Research (discovered 3 exits: *Acc x3) -1/Access Tau Ceti IV Orbit History --------- Turn | Location | Event 11 | -11/Scrapyard | Discovered new exit (range 15) 269 | -11/Scrapyard | Entered Materials 270 | -10/Materials | Met a group of wandering Federalists 308 | -10/Materials | Build established: Mutant 366 | -10/Materials | Discovered new exit (range 11) 372 | -10/Materials | Discovered new exit (range 6) 444 | -10/Materials | Discovered new exit (range 16) 736 | -10/Materials | Discovered new exit (range 8) 815 | -10/Materials | Entered another Materials area 815 | -9/Materials | Evolved 2 slots: Utility x2 993 | -9/Materials | Destroyed 8 combat bots 1102 | -9/Materials | Build established: Skirmisher 1416 | -9/Materials | Discovered new exit (range 4) 1595 | -9/Materials | Build established: Scavenger-Skirmisher 1720 | -9/Materials | Entered another Materials area 1720 | -8/Materials | Evolved 2 slots: Propulsion x1, Utility x1 2015 | -8/Materials | Repaired Imp. Sensor Array 2478 | -8/Materials | Discovered new exit (range 13) 2611 | -8/Materials | Identified exit to Factory 2615 | -8/Materials | Entered Factory 2615 | -7/Factory | Evolved 2 slots: Utility x1, Weapon x1 2856 | -7/Factory | Noticed a derelict Sapper rigging charges 2885 | -7/Factory | Build established: Assassin 3359 | -7/Factory | Lost 7 parts (2n4u1w) 3648 | -7/Factory | Build established: Scavenger-Mutant 3889 | -7/Factory | Repaired Lrg. Storage Unit 4200 | -7/Factory | Build established: Mutant 4311 | -7/Factory | Discovered new exit (range 5) 4319 | -7/Factory | Identified exit to Lower Caves 4453 | -7/Factory | Discovered new exit (range 15) 4480 | -7/Factory | Identified exit to Storage 4666 | -7/Factory | Entered Storage 5018 | -7/Storage | Build established: Skirmisher 5397 | -7/Storage | Discovered new exit (range 16) 5637 | -7/Storage | Identified exit to Factory 5639 | -7/Storage | Entered Factory 5639 | -6/Factory | Evolved 2 slots: Utility x2 6101 | -6/Factory | Discovered new exit (range 13) 6151 | -6/Factory | Identified exit to Extension 6153 | -6/Factory | Entered Extension 6208 | -6/Extension | Build established: Gunner 6266 | -6/Extension | Rescued a captive Derelict 6677 | -6/Extension | Spotted B-75 Beast 6718 | -6/Extension | Destroyed B-75 Beast 6759 | -6/Extension | Spotted B-75 Beast 6769 | -6/Extension | Lost 4 allies 6813 | -6/Extension | Destroyed B-75 Beast 7223 | -6/Extension | Rescued a captive Derelict 7224 | -6/Extension | Rescued a captive Derelict 7562 | -6/Extension | Rescued a captive Derelict 7565 | -6/Extension | Rescued a captive Derelict 7757 | -6/Extension | Disrupted transfer network 7757 | -6/Extension | Discovered new exit (range 10) 7812 | -6/Extension | Lost 4 allies 8038 | -6/Extension | Door terminal overloaded 8040 | -6/Extension | Rescued A7 8340 | -6/Extension | Discovered new exit (range 6) 8353 | -6/Extension | Identified exit to Cetus 8354 | -6/Extension | Entered Cetus 8354 | -6/Cetus | Accompanied by 1 ally (A7) 8359 | -6/Cetus | Acquired a Cetus Manufacturing Module code from A7 8370 | -6/Cetus | Spotted Cetus Guard 8371 | -6/Cetus | Spotted Cetus Guard 8375 | -6/Cetus | Destroyed Cetus Guard 8384 | -6/Cetus | Spotted Cetus Guard 8384 | -6/Cetus | Destroyed Cetus Guard 8386 | -6/Cetus | Spotted Cetus Guard 8395 | -6/Cetus | Allies destroyed Cetus Guard 8586 | -6/Cetus | Started Cetus Manufacturing Module 8611 | -6/Cetus | Manufactured an Enhanced Grunt 8636 | -6/Cetus | Manufactured an Enhanced Grunt 8661 | -6/Cetus | Manufactured an Enhanced Grunt 8686 | -6/Cetus | Manufactured an Enhanced Grunt 8711 | -6/Cetus | Manufactured an Enhanced Grunt 8719 | -6/Cetus | Build established: Scavenger-Tank 8745 | -6/Cetus | Discovered new exit (range 15) 8771 | -6/Cetus | Spotted Cetus Guard 8771 | -6/Cetus | Spotted Cetus Guard 8784 | -6/Cetus | Spotted Cetus Guard 8786 | -6/Cetus | Spotted Cetus Guard 8789 | -6/Cetus | Allies destroyed Cetus Guard 8794 | -6/Cetus | Allies destroyed Cetus Guard 8794 | -6/Cetus | Allies destroyed Cetus Guard 8802 | -6/Cetus | Allies destroyed Cetus Guard 8802 | -6/Cetus | Discovered new exit (range 16) 8813 | -6/Cetus | Met Revision 17 8873 | -6/Cetus | Entered Archives 8873 | -6/Archives | Accompanied by 6 allies (A7) 8918 | -6/Archives | Unable to access archive contents 8925 | -6/Archives | Discovered new exit (range 16) 8934 | -6/Archives | Unable to access archive contents 8938 | -6/Archives | Discovered new exit (range 16) 8950 | -6/Archives | Unable to access archive contents 9006 | -6/Archives | Discovered new exit (range 16) 9027 | -6/Archives | Unable to access archive contents 9168 | -6/Archives | Entered Hub_04(d) 9168 | -6/Hub_04(d) | Accompanied by 5 allies 9417 | -6/Hub_04(d) | Discovered new exit (range 11) 9451 | -6/Hub_04(d) | Identified exit to Factory 10008 | -6/Hub_04(d) | Network Hub disabled 10009 | -6/Hub_04(d) | System corruption reached 10% 10077 | -6/Hub_04(d) | Entered Factory 10077 | -5/Factory | Accompanied by 4 allies 10077 | -5/Factory | Evolved 2 slots: Power x1, Propulsion x1 10159 | -5/Factory | Repaired Cld. Particle Cannon 10167 | -5/Factory | Discovered new exit (range 6) 10175 | -5/Factory | Identified exit to Upper Caves 10217 | -5/Factory | Entered Upper Caves 10217 | -5/Upper Caves | Accompanied by 4 allies 10298 | -5/Upper Caves | Encountered a Warlord checkpoint 10441 | -5/Upper Caves | Attracted the attention of an 0b10 outpost 10489 | -5/Upper Caves | Lost 3 allies 10564 | -5/Upper Caves | Attracted the attention of an 0b10 checkpoint 10576 | -5/Upper Caves | Learned 12 Factory zone layouts 10661 | -5/Upper Caves | Learned Factory stockpile data 10872 | -5/Upper Caves | Discovered new exit (range 9) 10882 | -5/Upper Caves | Identified exit to Upper Caves 10918 | -5/Upper Caves | Entered another Upper Caves area 10918 | -5/Upper Caves | Accompanied by 2 allies 11061 | -5/Upper Caves | Attracted the attention of an 0b10 checkpoint 11148 | -5/Upper Caves | Crushed by falling debris 11159 | -5/Upper Caves | Spotted B-75 Beast 11165 | -5/Upper Caves | Destroyed B-75 Beast 11436 | -5/Upper Caves | Learned Factory security intel 11449 | -5/Upper Caves | Discovered new exit (range 14) 11472 | -5/Upper Caves | Entered Zhirov 11472 | -5/Zhirov | Discovered new exit (range 3) 11583 | -5/Zhirov | Met Zhirov 11636 | -5/Zhirov | Zhirov requested help retrieving the SGEMP Prototype 11660 | -5/Zhirov | Found Alien Artifact 11678 | -5/Zhirov | Found Alien Artifact 11678 | -5/Zhirov | Identified Integrated Dissipator 11678 | -5/Zhirov | Installed Integrated Dissipator, increased core heat dissipation (+20) 11799 | -5/Zhirov | Build established: Scavenger-Gunner 11851 | -5/Zhirov | Entered Proximity Caves 11854 | -4/Proximity Caves | Spotter reported a threat 11899 | -4/Proximity Caves | Learned Research terminal intel 11980 | -4/Proximity Caves | Crushed by falling debris 12068 | -4/Proximity Caves | Spotter reported a threat 12178 | -4/Proximity Caves | Spotter reported a threat 12327 | -4/Proximity Caves | Discovered new exit (range 14) 12359 | -4/Proximity Caves | Entered Factory 12359 | -4/Factory | Evolved 2 slots: Utility x2 12360 | -4/Factory | Identified exit to Research 12984 | -4/Factory | Repaired Quantum Reactor 13568 | -4/Factory | Entered Research 13568 | -3/Research | Evolved 2 slots: Propulsion x1, Weapon x1 13569 | -3/Research | Loaded intel: 24 terminal locations 13675 | -3/Research | Found Prototype Device 13675 | -3/Research | Identified Exp. Thermal Shield 13768 | -3/Research | Revision forces began assault on 0b10 13889 | -3/Research | Met up with Revision 17++ 14060 | -3/Research | Identified exit to Armory 14060 | -3/Research | Identified exit to Quarantine 14093 | -3/Research | Lost 4 allies 14137 | -3/Research | Destroyed 10 combat bots 14268 | -3/Research | Research terminal network offline 14340 | -3/Research | Spotted Striker 14387 | -3/Research | Found Prototype Device 14387 | -3/Research | Identified Exp. EM Disruption Field 14392 | -3/Research | Lost 5 allies 14475 | -3/Research | Build established: Scavenger-Tank 14538 | -3/Research | Discovered new exit (range 4) 14559 | -3/Research | Identified exit to Research 14653 | -3/Research | Spotted Striker 14674 | -3/Research | Destroyed Striker 14687 | -3/Research | Lost 4 allies 14714 | -3/Research | Found Heavy Servo Lattice 14871 | -3/Research | Entered Quarantine 14951 | -3/Quarantine | Found Alien Artifact 14951 | -3/Quarantine | Identified Terrabomb 14951 | -3/Quarantine | Used Terrabomb 14996 | -3/Quarantine | Found Alien Artifact 14996 | -3/Quarantine | Identified Phase Redirector 15168 | -3/Quarantine | Repaired Adv. Sensor Array 15196 | -3/Quarantine | Found Prototype Device 15196 | -3/Quarantine | Identified Exp. Shield Generator 15289 | -3/Quarantine | Found Alien Energy Cannon 15289 | -3/Quarantine | Identified Core Cannon 15340 | -3/Quarantine | Found Alien Slashing Weapon 15340 | -3/Quarantine | Identified Sigix Broadsword 15459 | -3/Quarantine | Found Gamma Bomb Array 15651 | -3/Quarantine | Build established: Scavenger-Mutant 15685 | -3/Quarantine | Found Alien Artifact 15685 | -3/Quarantine | Identified Phase Armor 15724 | -3/Quarantine | Cryocooling Duct disabled 15739 | -3/Quarantine | Ambient heat levels rising (+20) 15739 | -3/Quarantine | Non-combat units ordered to evacuate 15886 | -3/Quarantine | System corruption reached 10% 15903 | -3/Quarantine | Cryocooling Duct disabled 15918 | -3/Quarantine | Ambient heat levels rising (+20) 15918 | -3/Quarantine | Combat units ordered to evacuate 16018 | -3/Quarantine | Quarantine Guard activated 16039 | -3/Quarantine | Met incapacitated Sigix Warrior 16039 | -3/Quarantine | Lockdown squad dispatched 16041 | -3/Quarantine | Acquired the access code to the Sigix quarantine chamber 16044 | -3/Quarantine | Unlocked Sigix quarantine chamber 16050 | -3/Quarantine | Found Sigix Containment Pod 16141 | -3/Quarantine | Spotted Quarantine Guard 16191 | -3/Quarantine | Spotted Quarantine Guard 16243 | -3/Quarantine | Spotted Quarantine Guard 16258 | -3/Quarantine | Lost 3 parts (2u1w) 16263 | -3/Quarantine | Destroyed Quarantine Guard 16337 | -3/Quarantine | Destroyed Quarantine Guard 16453 | -3/Quarantine | Spotted Quarantine Guard 16474 | -3/Quarantine | Entered Research 16474 | -2/Research | Evolved 2 slots: Utility x2 17026 | -2/Research | System corruption reached 10% 17090 | -2/Research | Identified exit to Access 17206 | -2/Research | Destroyed 9 combat bots 17268 | -2/Research | Identified Transdimensional Reconstructor 17268 | -2/Research | Warped through subspace 17860 | -2/Research | Entered Access 17860 | -1/Access | Evolved 2 slots: Utility x2 18054 | -1/Access | Lost 3 parts (2u1w) 18119 | -1/Access | Energy Cycler disabled 18162 | -1/Access | Lost 4 parts (1p1n1u1w) 18338 | -1/Access | Lost 5 parts (5u) 18360 | -1/Access | First assault squad dispatched 18440 | -1/Access | Build established: Scavenger-Gunner 18738 | -1/Access | Discovered new exit (range 6) 18743 | -1/Access | Identified exit to Surface 18744 | *** | Destroyed 0b10! Last Messages --------------- 18671_ Penetrated by Slug. 18674_ Slug penetrates H-88 Terminator. 18674_ HV Slug penetrates H-88 Terminator. 18674_ H-88 Terminator suffers critical hit (Destroy). 18674_ H-88 Terminator destroyed. 18674_ HV Slug penetrates Hyperwave Decoder. 18675_ Hyperwave Decoder collapses. 18675_ Hyperwave Decoder disabled. 18675_ Acquired 22 matter. 18682_ Dropped Myomer Leg. 18684_ Acquired Biometal Leg. 18686_ Extracted 15 energy. 18714_ Identified Powered Hammer. 18724_ System corrupted: Matter fused (-8). 18738_ The Access Shell folds into the floor. 18738_ EXIT=FOUND 18743_ EXIT=IDENTIFIED: SURFACE [Achievement: Payload Armed] Map ----- +----------------------------------------------------+ | ?????????????????????????????????????????????????? | | ?????????????????????????????????????????????????? | | ?????????????????????????????????????????????????? | | ?????????????????????????????????????????????????? | | ?????????????????????????????????????????????????? | | ?????????????????????????????????????????????????? | | ?????????????????????????????????????????????????? | | ?????????????????????????????????????????????????? | | ?????????????????????????????????????????????????? | | ?????????????????????????????????????????????????? | | ?????????????????????????????????????????????????? | | ?????????????????????????????????????????????????? | | ?????????????????????????????????????????????????? | | ?????????????????????????????????????????????????? | | ?????????????????????BB????BB????????????????????? | | ?????????????????????BB????BB????????????????????? | | ?????????????????????????????????????????????????? | | ?????????????????????????????????????????????????? | | ?????????????????????????????????????????????????? | | ?????????????????????????????????????????????????? | | ???????????????????#""""""""""#??????????????????? | | ???????????????????# #??????????????????? | | ???????????t???????# #??????????????????? | | ???????????????????# #??????????????????? | | ???????????????????# "" #??????????????????? | | ???????????????????# "@ #??????????????????? | | ???????????????????# #??????????????????? | | ???????????????????# #??????????????????? | | ???????????????????# #??????????????????? | | ??????????????????## ##?????????????????? | | ??????????????????# #?????????????????? | | ??????????? ?????##"" ##?????????????????? | | ??????????? ??????#"" #??????????????????? | | ??????????? ??????#"" #??????????????????? | | ??????????# ??????#T #??????????????????? | | ??????????# #?????#"" #??????????????????? | | ?""???????# #?????#"" #??????????????????? | | """"??????# #######"" ###????????????????? | | """"??????+ ???????????? | | "" "??????# ???????????? | | [ ??????# ## ###################+#????????????? | | !|=!??????# # ############??????????????????????? | | ![[%??????# # #??????????????????????? | | ##=##?????# + #??????????????????????? | | !!%=####### # #??????????????????????? | | |!!%[*= # """"" #??????????????????????? | | ![==! ! + """"" #??????????????????????? | | !=[%###+###+## """""??????????????????????????? | | #*![# ## """"???????????????????????????? | | #!%## ## """"???????????????????????????? | +----------------------------------------------------+ Best States ------------- Heat Dissipation 176 Energy Generation 45 Energy Capacity 790 Matter Stores 300 Matter Capacity 300 Sight Range 16 Robot Scan Range 16 Terrain Scan Range 16 Terrain Scan Density 110 Jamming Range 12 Base Temperature (-) 200 Armor Coverage 1200 Resistance: KI 45 Resistance: TH 20 Resistance: EX 20 Resistance: EM 20 Resistance: I 20 Resistance: S 20 Resistance: P 20 Core Shielding 30 Propulsion Shielding 66 Utility Shielding 90 Weapon Shielding 90 Phase Shifting 15 Evasion (%) 85 Targeting Accuracy 24 Melee Accuracy 6 Armor Integrity Analysis 40 Recoil Reduction 4 Energy Filtering 30 Particle Charging 20 Salvage Targeting 1 Offensive Hacking 20 Item Schematics ----------------- Hcp. Storage Unit | -10/Materials | Hacked Hcp. Matter Pod | -10/Materials | Hacked Centrium Heavy Treads | -3/Quarantine | Scanalyzed Hvy. Rocket Launcher | -3/Quarantine | Scanalyzed Robot Schematics ------------------ None Fabricated ------------ Nothing Repaired ---------- Imp. Sensor Array | 9% | -8/Materials Lrg. Storage Unit | 28% | -7/Factory Cld. Particle Cannon | 32% | -5/Factory Quantum Reactor | 1% | -4/Factory Adv. Sensor Array | 25% | -3/Quarantine Alien Tech Used ----------------- Integrated Dissipator Terrabomb Phase Redirector Core Cannon Sigix Broadsword Phase Armor Transdimensional Reconstructor Achievements -------------- Batter Up Dodgeball, But With Guns Overkill Payload Armed Revolutionary Research Challenges ------------ None Game ------ Seed RecoilWeaponsBox Manual? 0 Play Time 03:58:39 Cumulative 76.8 hours Start 2025.08.23 @ 13:01:59 End 2025.08.24 @ 00:27:31 Sessions 17 Manual Loads 0 Difficulty Adventurer Special Mode None Game No. 62 Rogue 20 Adventurer 42 Explorer 0 Win Type 3 Total 3 Types 2/0/0/1/0/0/0/0/0/0 Lore% 40 Gallery% 52 Achievement% 52 Wizard Run 0 Options --------- Layout 1 ASCII 1 Keyboard 0 Movement Mouse Keybinds 0 Fullscreen 1 Font 24/CherryShadow Map View 50x35 Zoom Use 0% Tactical HUD 1 Map Filters NONE Filters NONE Steam 1 RUN: 3bb1b678-fa2e-4741-82c4-871da6d8ed4d